bitfinex/quotes_SOLUSD_20240614
["timestamp","ask_amount","ask_price","bid_price","bid_amount"]
[1718363280431,0.34,147.37,147.32,1.17455106]
[1718363280615,0.34,147.37,147.32,7.34455106]
[1718363280813,0.33333334,147.36,147.32,6.17]
[1718363281016,0.33333334,147.36,147.31,6.17]
[1718363281209,0.33333334,147.36,147.32,6.17]
[1718363281403,0.33333334,147.36,147.3,0.89198746]
[1718363281632,0.33333334,147.36,147.31,6.17]
[1718363281802,0.33333334,147.36,147.3,0.89198746]
[1718363282004,0.33333334,147.36,147.31,6.17]
[1718363282229,22.6318,147.35,147.3,0.89198746]
[1718363282425,22.6318,147.35,147.3,7.0140502]
[1718363282602,22.6318,147.35,147.3,0.8440502]
[1718363282802,22.6318,147.35,147.3,7.0140502]
[1718363283606,28.8018,147.35,147.3,0.8440502]
[1718363283807,28.8018,147.35,147.3,20.8440502]
[1718363284004,28.8018,147.35,147.3,0.8440502]
[1718363284418,128.8018,147.35,147.3,0.8440502]
[1718363285313,0.68,147.34,147.3,0.8440502]
[1718363285521,6.17,147.33,147.3,0.8440502]
[1718363285904,0.33333334,147.32,147.3,0.8440502]
[1718363286329,0.51,147.31,147.3,0.8440502]
[1718363286716,0.17,147.31,147.3,0.8440502]
[1718363286921,6.34,147.33,147.3,0.8440502]
[1718363287243,0.17,147.33,147.3,0.8440502]
[1718363287427,0.17,147.31,147.3,0.8440502]
[1718363288242,0.34,147.32,147.3,0.8440502]
[1718363288434,6.68,147.33,147.3,0.8440502]
[1718363288741,0.51,147.33,147.3,0.8440502]
[1718363288938,6.68,147.33,147.3,0.8440502]
[1718363289138,6.17,147.32,147.3,0.8440502]
[1718363289321,0.17,147.31,147.3,0.8440502]
[1718363289721,6.17,147.32,147.3,0.8440502]
[1718363289939,22.4608,147.31,147.3,0.8440502]
[1718363290138,87.6308,147.31,147.3,0.8440502]
[1718363290845,93.8159,147.31,147.3,0.8440502]
[1718363291143,22.4759,147.31,147.3,0.8440502]
[1718363291311,28.6459,147.31,147.3,0.8440502]
[1718363291515,28.8159,147.31,147.3,0.8440502]
[1718363291731,22.6459,147.31,147.3,0.8440502]
[1718363292014,28.8159,147.31,147.3,0.8440502]
[1718363293138,22.6459,147.31,147.3,0.8440502]
[1718363293342,28.8159,147.31,147.3,0.8440502]
[1718363294523,28.6459,147.31,147.3,0.8440502]
[1718363295353,28.6459,147.31,147.18,0.04797635]
[1718363295354,21.0208,147.3,147.18,0.04797635]
[1718363295526,13.02,147.31,147.18,0.04797635]
[1718363295527,21.0208,147.26,147.18,0.04797635]
[1718363295765,0.17,147.25,147.17,9.02144486]
[1718363295967,6.17,147.21,147.17,9.02144486]
[1718363296184,0.51,147.22,147.17,9.02144486]
[1718363296483,6.34,147.19,147.17,9.02144486]
[1718363296685,22.8204,147.18,147.17,9.02144486]
[1718363296899,0.33333334,147.18,147.17,11.69144486]
[1718363297068,6.3428,147.25,147.17,11.69144486]
[1718363297261,116.4776,147.26,147.17,5.52144486]
[1718363297595,6.17,147.24,147.17,5.52144486]
[1718363297771,0.17,147.25,147.19,6.17]
[1718363297980,16.4776,147.26,147.21,6.17]
[1718363298152,16.4776,147.26,147.17,5.52144486]
[1718363298153,15.3928,147.31,147.25,6.17]
[1718363298492,21.5628,147.31,147.25,6.17]
[1718363298658,6.17,147.27,147.17,22.07244486]
[1718363298856,100.0,147.28,147.18,20.0]
[1718363299166,6.17,147.25,147.19,6.17]
[1718363299379,12.357,147.25,147.19,6.17]
[1718363299586,0.34,147.24,147.17,5.52144486]
[1718363299793,0.34,147.24,147.18,6.17]
[1718363299982,0.34,147.24,147.2,6.17]
[1718363300293,26.0886,147.29,147.17,5.52144486]
[1718363300498,51.85,147.28,147.22,6.17]
[1718363300802,6.0886,147.29,147.25,6.17]
[1718363300974,15.3928,147.31,147.18,45.0]
[1718363300975,15.3928,147.31,147.2,21.1134]
[1718363301173,120.0,147.3,147.21,20.0]
[1718363301379,20.0,147.3,147.21,20.0]
[1718363301567,20.0,147.3,147.19,20.0]
[1718363301772,15.3928,147.31,147.2,0.17]
[1718363302075,0.34,147.3,147.2,0.17]
[1718363302278,0.17,147.29,147.2,0.17]
[1718363302492,15.3928,147.31,147.21,34.1579]
[1718363302694,6.0886,147.33,147.22,20.17]
[1718363303094,6.0886,147.33,147.22,0.17]
[1718363303301,6.0886,147.33,147.22,20.17]
[1718363304794,100.17,147.32,147.22,20.0]
[1718363304971,65.0,147.31,147.22,20.0]
[1718363305168,100.17,147.3,147.18,18.6]
[1718363305395,65.0,147.29,147.18,18.6]
[1718363305581,0.17,147.29,147.19,20.0]
[1718363305783,0.51,147.29,147.18,18.6]
[1718363305975,0.17,147.3,147.18,18.6]
[1718363306377,0.34,147.3,147.18,18.6]
[1718363306597,0.17,147.3,147.19,0.51]
[1718363307001,0.17,147.3,147.19,20.51]
[1718363308003,0.17,147.32,147.21,18.6]
[1718363308297,6.0886,147.33,147.22,20.17]
[1718363309411,6.0886,147.33,147.23,6.4425]
[1718363309724,6.0886,147.33,147.24,20.17]
[1718363309905,6.0886,147.33,147.24,38.77]
[1718363310092,16.123,147.34,147.24,55.3589]
[1718363310800,6.2643,147.36,147.24,55.3589]
[1718363311204,6.2643,147.36,147.24,36.5889]
[1718363311507,6.2643,147.36,147.25,21.1126]
[1718363311714,15.9305,147.38,147.27,2.5123]
[1718363311888,6.3034,147.4,147.28,18.6]
[1718363312080,6.3034,147.4,147.29,20.0]
[1718363312475,15.3657,147.42,147.3,6.793]
[1718363312695,15.3657,147.42,147.3,6.623]
[1718363312896,15.3657,147.42,147.31,20.0]
[1718363314604,20.17,147.41,147.31,20.0]
[1718363315402,45.0,147.4,147.31,20.0]
[1718363315580,0.51,147.39,147.31,20.0]
[1718363316607,0.17,147.39,147.31,20.0]
[1718363316791,0.17,147.4,147.31,20.0]
[1718363316983,0.51,147.4,147.31,20.0]
[1718363317185,20.0,147.41,147.31,20.0]
[1718363317797,0.17,147.4,147.31,20.0]
[1718363317998,45.17,147.4,147.31,20.0]
[1718363318711,0.34,147.39,147.31,20.0]
[1718363318898,0.17,147.38,147.31,20.0]
[1718363319910,0.17,147.38,147.25,6.3175]
[1718363320111,0.17,147.37,147.25,24.9175]
[1718363320285,0.51,147.37,147.25,6.3175]
[1718363320490,0.17,147.36,147.25,6.3175]
[1718363320700,0.17,147.35,147.25,6.3175]
[1718363320901,0.51,147.35,147.25,6.3175]
[1718363321095,0.17,147.34,147.25,6.3175]
[1718363321492,0.17,147.33,147.26,20.0]
[1718363324210,20.0,147.37,147.26,20.0]
[1718363324411,20.0,147.39,147.26,20.0]
[1718363325294,20.0,147.39,147.27,18.6]
[1718363325491,20.0,147.39,147.28,20.0]
[1718363326090,20.0,147.41,147.28,20.0]
[1718363326486,115.3657,147.42,147.28,20.0]
[1718363326699,100.0,147.4,147.28,20.0]
[1718363327420,0.17,147.39,147.28,20.0]
[1718363327718,0.17,147.38,147.28,20.0]
[1718363328014,0.34,147.38,147.28,20.0]
[1718363329095,0.17,147.36,147.28,20.0]
[1718363329300,0.34,147.36,147.28,20.0]
[1718363329501,0.34,147.36,147.25,6.3175]
[1718363329702,0.34,147.36,147.26,18.77]
[1718363331130,0.34,147.36,147.27,20.0]
[1718363331514,0.34,147.36,147.28,1.35683695]
[1718363331730,0.17,147.36,147.27,20.0]
[1718363332031,0.17,147.37,147.27,20.0]
[1718363333024,0.51,147.38,147.28,0.17]
[1718363333248,0.34,147.38,147.28,0.17]
[1718363334203,0.17,147.37,147.28,0.17]
[1718363334520,0.17,147.37,147.27,20.0]
[1718363339529,0.34,147.37,147.27,20.0]
[1718363339936,0.34,147.37,147.27,22.5122]
[1718363340134,115.3657,147.42,147.29,18.6]
[1718363340303,15.3657,147.42,147.3,20.17]
[1718363341322,115.3657,147.42,147.3,20.17]
[1718363341836,115.3657,147.42,147.3,20.0]
[1718363342017,45.34,147.41,147.3,20.0]
[1718363342219,100.0,147.39,147.3,20.0]
[1718363342423,0.51,147.38,147.3,20.0]
[1718363344835,106.9164,147.38,147.25,6.3175]
[1718363345040,0.17,147.36,147.25,6.3175]
[1718363345220,0.17,147.36,147.25,8.8301]
[1718363345221,0.51,147.36,147.25,8.8301]
[1718363346128,0.51,147.36,147.26,0.17]
[1718363346541,0.51,147.36,147.26,20.0]
[1718363350119,0.34,147.36,147.27,0.17]
[1718363351416,0.17,147.35,147.25,6.3175]
[1718363351647,0.17,147.34,147.25,6.3175]
[1718363351834,0.34,147.34,147.25,6.3175]
[1718363352018,0.51,147.34,147.25,6.3175]
[1718363352964,0.17,147.34,147.25,6.3175]
[1718363353138,0.34,147.35,147.26,20.0]
[1718363355925,0.17,147.34,147.26,20.0]
[1718363356261,0.34,147.35,147.26,20.0]
[1718363357058,15.7046,147.36,147.27,0.17]
[1718363357260,15.7046,147.36,147.27,18.77]
[1718363357435,15.7046,147.36,147.28,20.0]
[1718363359337,15.7046,147.36,147.27,18.77]
[1718363359535,15.7046,147.36,147.28,20.0]
[1718363360652,15.7046,147.36,147.29,0.17]
[1718363361651,15.7046,147.36,147.29,0.34]
[1718363365069,6.4064,147.38,147.29,0.34]
[1718363365070,6.4064,147.38,147.3,18.77]
[1718363365363,6.0309,147.42,147.33,18.6]
[1718363365580,6.0309,147.42,147.34,20.17]
[1718363367627,15.9064,147.43,147.35,0.17]
[1718363368052,15.9064,147.43,147.34,20.17]
[1718363369148,15.9064,147.43,147.34,20.0]
[1718363369462,0.34,147.42,147.34,20.0]
[1718363370058,0.34,147.42,147.32,20.0]
[1718363373760,16.0764,147.43,147.32,20.0]
[1718363373964,15.9064,147.43,147.34,18.6]
[1718363374269,15.9064,147.43,147.35,20.17]
[1718363374580,15.9064,147.43,147.35,20.0]
[1718363375276,0.17,147.42,147.35,20.0]
[1718363375442,0.51,147.42,147.32,20.0]
[1718363375958,15.9064,147.43,147.33,0.51]
[1718363376274,15.9064,147.43,147.35,0.17]
[1718363376442,15.9064,147.43,147.35,20.34]
[1718363376760,15.9064,147.43,147.35,20.17]
[1718363376950,15.9064,147.43,147.35,20.0]
[1718363377469,15.9064,147.43,147.33,38.77]
[1718363377763,15.9064,147.43,147.34,0.17]
[1718363380073,15.9064,147.43,147.34,2.8511]
[1718363380366,15.9064,147.43,147.35,0.34]
[1718363380569,15.9064,147.43,147.36,0.17]
[1718363384075,15.9064,147.43,147.34,0.17]
[1718363384379,15.9064,147.43,147.34,0.51]
[1718363386884,15.9064,147.43,147.39,6.19]
[1718363387056,15.9064,147.43,147.38,6.19]
[1718363387976,15.9064,147.43,147.35,24.76]
[1718363388194,6.4771,147.41,147.36,20.0]
[1718363388355,6.4771,147.41,147.36,6.19]
[1718363389374,6.4771,147.41,147.38,6.19]
[1718363392776,15.9064,147.43,147.4,6.19]
[1718363392978,15.9064,147.43,147.42,6.19]
[1718363395988,6.0841,147.45,147.42,6.19]
[1718363397473,6.0841,147.45,147.41,6.19]
[1718363398395,6.0841,147.45,147.42,6.19]
[1718363400578,6.1433,147.48,147.44,6.19]
[1718363400767,6.1433,147.48,147.38,2.5104]
[1718363400768,6.1433,147.48,147.45,6.19]
[1718363401790,6.1433,147.48,147.43,6.19]
[1718363402292,6.1433,147.48,147.44,6.19]
[1718363403699,16.0606,147.5,147.45,6.19]
[1718363410299,16.0606,147.5,147.46,6.19]
[1718363412407,16.0606,147.5,147.47,6.19]
[1718363412613,16.0606,147.5,147.48,6.19]
[1718363413884,6.221,147.52,147.48,6.19]
[1718363414196,6.221,147.52,147.49,6.19]
[1718363415284,15.8674,147.54,147.5,6.19]
[1718363416788,15.8674,147.54,147.51,6.19]
[1718363416989,15.8674,147.54,147.52,6.19]
[1718363418809,6.3375,147.55,147.52,6.19]
[1718363419979,6.3375,147.55,147.49,6.19]
[1718363419980,16.3547,147.58,147.54,6.19]
[1718363420183,16.3547,147.58,147.49,24.76]
[1718363420407,16.3547,147.58,147.5,20.0]
[1718363420613,16.3547,147.58,147.53,6.19]
[1718363422424,6.19,147.56,147.5,6.19]
[1718363422717,6.19,147.56,147.45,16.3508]
[1718363423012,0.51,147.57,147.51,6.19]
[1718363423216,6.19,147.56,147.46,0.34]
[1718363423421,6.19,147.56,147.5,6.19]
[1718363423617,6.7,147.57,147.51,6.19]
[1718363423997,6.19,147.56,147.5,6.19]
[1718363424618,0.17,147.57,147.51,6.19]
[1718363424918,0.17,147.57,147.52,6.19]
[1718363425620,0.17,147.57,147.49,24.76]
[1718363425992,6.19,147.57,147.46,20.68]
[1718363426193,16.3547,147.58,147.54,6.19]
[1718363426421,16.3547,147.58,147.55,6.19]
[1718363427826,16.354,147.62,147.56,6.19]
[1718363428008,22.544,147.62,147.56,6.19]
[1718363428329,22.544,147.62,147.57,6.19]
[1718363431023,22.544,147.62,147.56,6.19]
[1718363432427,0.34,147.61,147.5,22.0695]
[1718363432723,0.34,147.61,147.55,6.19]
[1718363432913,6.53,147.61,147.55,6.19]
[1718363434723,6.19,147.6,147.55,6.19]
[1718363434927,6.19,147.6,147.54,6.19]
[1718363437920,16.524,147.62,147.55,6.19]
[1718363438235,16.524,147.62,147.51,0.17]
[1718363438236,16.354,147.62,147.57,6.19]
[1718363439641,16.354,147.62,147.59,6.19]
[1718363440735,6.1225,147.63,147.59,6.19]
[1718363440916,6.1225,147.63,147.56,6.19]
[1718363441231,6.1225,147.63,147.6,6.19]
[1718363442839,6.1225,147.63,147.57,1.10203451]
[1718363443047,6.1225,147.63,147.57,21.10203451]
[1718363444717,15.6002,147.66,147.62,6.19]
[1718363445219,15.6002,147.66,147.63,6.19]
[1718363446245,15.6002,147.66,147.62,6.19]
[1718363447131,15.6002,147.66,147.61,6.19]
[1718363447641,15.6002,147.66,147.62,6.19]
[1718363448127,15.6002,147.66,147.61,6.19]
[1718363448531,15.6002,147.66,147.63,6.19]
[1718363448831,6.9842502,147.67,147.64,6.19]
[1718363449539,0.8440502,147.67,147.6,0.17]
[1718363449744,0.8440502,147.67,147.66,6.19]
[1718363451526,0.8440502,147.67,147.66,26.19]
[1718363457842,0.8440502,147.67,147.66,20.0]
[1718363458048,0.8440502,147.67,147.63,20.0]
[1718363458249,15.8494,147.66,147.6,5.40768603]
[1718363458424,0.8440502,147.67,147.63,6.19]
[1718363458761,0.8440502,147.67,147.66,6.19]
[1718363459651,6.784,147.85,147.66,6.19]
[1718363459652,16.4337,147.75,147.66,26.53]
[1718363459851,16.4337,147.75,147.71,6.19]
[1718363460531,16.4337,147.75,147.66,20.0]
[1718363460867,16.4337,147.75,147.68,6.19]
[1718363460868,6.19,147.74,147.68,6.19]
[1718363462050,0.17,147.74,147.62,20.0]
[1718363462357,6.19,147.71,147.62,20.0]
[1718363462651,6.19,147.71,147.66,6.19]
[1718363463351,12.5671,147.71,147.66,6.19]
[1718363463941,12.5671,147.71,147.62,20.0]
[1718363464153,12.5671,147.71,147.65,6.19]
[1718363464660,6.3771,147.71,147.67,6.19]
[1718363464856,6.3771,147.71,147.63,6.19]
[1718363465167,6.3771,147.71,147.68,6.19]
[1718363465350,6.3771,147.71,147.67,6.19]
[1718363465758,6.3771,147.71,147.68,6.19]
[1718363466862,6.3771,147.71,147.64,0.17]
[1718363467071,6.3771,147.71,147.64,20.0]
[1718363467241,12.5671,147.71,147.65,6.19]
[1718363467441,15.4663,147.7,147.65,6.19]
[1718363467755,21.6563,147.7,147.64,26.19]
[1718363468139,21.6563,147.7,147.65,6.19]
[1718363468455,15.4663,147.7,147.65,6.19]
[1718363469670,21.6563,147.7,147.59,8.10303918]
[1718363469879,6.19,147.69,147.63,6.19]
[1718363471472,15.4663,147.7,147.63,6.19]
[1718363471771,21.6563,147.7,147.64,6.19]
[1718363473376,15.4663,147.7,147.64,6.19]
[1718363473551,15.4663,147.7,147.66,6.19]
[1718363476558,6.19,147.69,147.6,0.17]
[1718363476763,6.19,147.69,147.63,6.19]
[1718363478272,15.9763,147.7,147.63,6.19]
[1718363478575,15.4663,147.7,147.64,6.19]
[1718363478783,21.6563,147.7,147.59,0.17]
[1718363478950,21.6563,147.7,147.64,6.19]
[1718363480081,6.19,147.69,147.63,6.19]
[1718363480377,0.33333334,147.68,147.63,6.19]
[1718363480757,0.33333334,147.68,147.64,6.19]
[1718363481457,6.52333334,147.68,147.59,20.17]
[1718363481658,0.17,147.67,147.61,6.19]
[1718363481873,12.7863,147.66,147.6,6.19]
[1718363482184,6.92963334,147.66,147.61,6.19]
[1718363483478,6.92963334,147.66,147.58,20.0]
[1718363483655,16.3731,147.65,147.58,20.0]
[1718363483858,16.3731,147.65,147.59,6.19]
[1718363484166,6.19,147.63,147.57,6.19]
[1718363484667,0.33333334,147.62,147.57,6.19]
[1718363485765,6.52333334,147.62,147.56,6.19]
[1718363486586,6.19,147.61,147.55,6.19]
[1718363486962,0.33333334,147.6,147.49,19.0699]
[1718363487261,16.0888,147.59,147.54,6.19]
[1718363487669,0.33333334,147.58,147.54,6.19]
[1718363487890,0.33333334,147.58,147.49,41.3213]
[1718363488184,0.33333334,147.58,147.54,6.19]
[1718363489288,0.33333334,147.58,147.55,6.19]
[1718363490961,0.33333334,147.58,147.52,0.17]
[1718363491157,0.33333334,147.58,147.57,6.19]
[1718363494768,0.33333334,147.58,147.57,26.19]
[1718363497290,0.33333334,147.58,147.57,26.53]
[1718363497620,0.33333334,147.58,147.57,26.87]
[1718363499598,0.33333334,147.58,147.57,26.36]
[1718363504574,0.33333334,147.58,147.57,26.19]
[1718363506392,0.33333334,147.58,147.52,16.54628165]
[1718363506567,0.33333334,147.58,147.53,20.0]
[1718363506881,0.33333334,147.58,147.56,6.19]
[1718363509492,0.33333334,147.58,147.51,20.0]
[1718363509695,0.33333334,147.58,147.52,0.17]
[1718363509881,0.33333334,147.58,147.55,6.19]
[1718363512494,0.33333334,147.58,147.56,6.19]
[1718363512887,0.33333334,147.58,147.57,6.19]
[1718363514500,0.33333334,147.58,147.56,6.19]
[1718363516690,0.33333334,147.58,147.55,6.19]
[1718363518698,0.33333334,147.58,147.51,20.0]
[1718363518871,0.33333334,147.58,147.55,6.19]
[1718363519076,0.33333334,147.58,147.54,6.19]
[1718363520406,0.33333334,147.58,147.51,20.0]
[1718363520600,0.33333334,147.58,147.53,6.19]
[1718363521304,0.33333334,147.58,147.55,6.19]
[1718363523922,0.33333334,147.58,147.54,6.19]
[1718363524582,0.33333334,147.58,147.5,20.17]
[1718363524583,6.52333334,147.58,147.5,20.17]
[1718363524799,6.52333334,147.58,147.53,6.19]
[1718363525812,6.52333334,147.58,147.5,20.17]
[1718363526108,6.52333334,147.58,147.53,6.19]
[1718363526798,0.33333334,147.58,147.53,6.19]
[1718363527503,0.33333334,147.58,147.54,6.19]
[1718363528685,0.33333334,147.58,147.53,6.19]
[1718363529103,0.33333334,147.58,147.5,20.17]
[1718363529291,0.33333334,147.58,147.52,6.19]
[1718363529603,0.33333334,147.58,147.5,20.17]
[1718363529808,0.33333334,147.58,147.52,6.19]
[1718363530313,16.3538,147.56,147.51,6.19]
[1718363530518,16.3538,147.56,147.52,6.19]
[1718363531896,16.3538,147.56,147.54,6.19]
[1718363533794,16.3538,147.56,147.5,20.0]
[1718363533998,16.3538,147.56,147.53,6.19]
[1718363534810,16.3538,147.56,147.5,20.0]
[1718363534811,16.3538,147.56,147.54,6.19]
[1718363535019,16.3538,147.56,147.53,6.19]
[1718363535203,16.3538,147.56,147.54,6.19]
[1718363535404,16.3538,147.56,147.53,6.19]
[1718363537293,22.6614,147.6,147.5,20.0]
[1718363537509,22.6614,147.6,147.55,6.19]
[1718363537713,22.6614,147.6,147.56,6.19]
[1718363539935,22.6614,147.6,147.55,6.19]
[1718363541348,22.6614,147.6,147.51,0.17]
[1718363541530,0.34,147.59,147.51,20.0]
[1718363542433,6.36,147.57,147.51,6.19]
[1718363542636,6.36,147.57,147.47,8.10303918]
[1718363542931,0.33333334,147.56,147.51,6.19]
[1718363548749,6.52333334,147.56,147.47,8.10303918]
[1718363548949,6.52333334,147.56,147.5,6.19]
[1718363549843,22.2222,147.55,147.49,6.19]
[1718363550152,6.36,147.54,147.43,8.10303918]
[1718363550454,0.50333334,147.54,147.48,6.19]
[1718363550660,6.69333334,147.54,147.43,8.10303918]
[1718363550826,0.17,147.53,147.48,6.19]
[1718363551225,0.33333334,147.52,147.48,6.19]
[1718363566045,0.33333334,147.52,147.49,6.19]
[1718363567763,0.33333334,147.52,147.5,6.19]
[1718363569048,0.33333334,147.52,147.51,6.19]
[1718363576552,0.33333334,147.52,147.51,26.19]
[1718363577065,0.33333334,147.52,147.51,26.36]
[1718363577751,0.33333334,147.52,147.51,26.53]
[1718363578061,0.33333334,147.52,147.51,26.87]
[1718363578445,0.33333334,147.52,147.51,29.3783]
[1718363579164,0.33333334,147.52,147.51,26.87]
[1718363581368,0.33333334,147.52,147.51,26.7]
[1718363581546,0.33333334,147.52,147.51,20.0]
[1718363581741,0.33333334,147.52,147.51,6.19]
[1718363582066,0.33333334,147.52,147.51,26.19]
[1718363582368,0.28545896,147.52,147.51,26.19]
[1718363588877,0.28545896,147.52,147.5,6.19]
[1718363590270,0.28545896,147.52,147.44,8.10303918]
[1718363590475,0.28545896,147.52,147.49,6.19]
[1718363590780,0.28545896,147.52,147.5,6.19]
[1718363590956,0.28545896,147.52,147.45,20.0]
[1718363590957,0.28545896,147.52,147.49,6.19]
[1718363595089,0.28545896,147.52,147.5,6.19]
[1718363597079,0.28545896,147.52,147.49,6.19]
[1718363598380,0.28545896,147.52,147.45,20.0]
[1718363598683,0.28545896,147.52,147.49,6.19]
[1718363599660,0.28545896,147.52,147.45,20.0]
[1718363600073,0.28545896,147.52,147.48,6.19]
[1718363602783,6.2971,147.51,147.45,20.0]
[1718363603161,6.2971,147.51,147.46,6.19]
[1718363605197,6.2971,147.51,147.45,20.0]
[1718363605504,6.2971,147.51,147.46,6.19]
[1718363606684,6.2971,147.51,147.47,6.19]
[1718363608089,6.2971,147.51,147.48,6.19]
[1718363608463,22.9344,147.54,147.49,6.19]
[1718363609068,22.9344,147.54,147.5,6.19]
[1718363609966,22.9344,147.54,147.51,6.19]
[1718363612288,22.9344,147.54,147.5,6.19]
[1718363613074,22.9344,147.54,147.45,20.0]
[1718363613311,29.1244,147.54,147.48,6.19]
[1718363614878,22.9344,147.54,147.49,6.19]
[1718363615571,22.9344,147.54,147.45,20.0]
[1718363615572,22.9344,147.54,147.5,6.19]
[1718363622512,16.6058,147.54,147.51,6.19]
[1718363622717,16.6058,147.54,147.52,6.19]
[1718363623415,21.8162,147.58,147.49,6.19]
[1718363623705,21.8162,147.58,147.54,6.19]
[1718363624414,21.8162,147.58,147.55,6.19]
[1718363626615,280.912252,147.71,147.57,6.19]
[1718363626616,21.4707,147.62,147.57,6.19]
[1718363626793,21.4707,147.62,147.59,6.19]
[1718363628989,21.4707,147.62,147.58,6.19]
[1718363630690,21.4707,147.62,147.59,6.19]
[1718363631423,15.0757,147.62,147.6,6.19]
[1718363632714,16.4393,147.65,147.6,6.19]
[1718363633199,16.4393,147.65,147.61,6.19]
[1718363636113,16.4393,147.65,147.6,6.19]
[1718363638302,16.4393,147.65,147.54,0.17]
[1718363638510,22.6293,147.65,147.59,6.19]
[1718363639018,22.6293,147.65,147.53,20.0]
[1718363639019,6.19,147.63,147.53,20.0]
[1718363639215,6.19,147.62,147.57,6.19]
[1718363639427,6.19,147.62,147.56,6.19]
[1718363639609,6.19,147.62,147.57,20.0]
[1718363639808,6.19,147.62,147.57,26.19]
[1718363640119,6.19,147.62,147.57,20.0]
[1718363640422,6.19,147.62,147.57,6.19]
[1718363640815,6.19,147.63,147.57,6.19]
[1718363645333,51.87,147.64,147.58,6.19]
[1718363645818,51.87,147.64,147.54,2.5077]
[1718363646047,51.87,147.64,147.58,6.19]
[1718363646905,51.87,147.64,147.53,2.5078]
[1718363647118,51.87,147.64,147.58,6.19]
[1718363647313,51.87,147.64,147.57,6.19]
[1718363647519,6.19,147.63,147.53,2.5078]
[1718363647722,6.19,147.63,147.57,6.19]
[1718363648507,51.87,147.64,147.54,2.5077]
[1718363648820,51.87,147.64,147.58,6.19]
[1718363649633,51.87,147.64,147.53,2.5078]
[1718363649822,51.87,147.64,147.58,6.19]
[1718363650407,6.87,147.64,147.58,6.19]
[1718363650723,6.53,147.64,147.58,6.19]
[1718363650913,16.4393,147.65,147.56,27.2674]
[1718363651113,16.4393,147.65,147.57,20.0]
[1718363654012,16.4393,147.65,147.6,6.19]
[1718363655036,16.4393,147.65,147.61,6.19]
[1718363655244,16.4393,147.65,147.63,6.19]
[1718363656637,6.353,147.66,147.64,6.19]
[1718363656826,15.4218,147.69,147.64,6.19]
[1718363657512,15.4218,147.69,147.65,6.19]
[1718363657718,15.4218,147.69,147.66,6.19]
[1718363658923,15.4218,147.69,147.63,6.19]
[1718363659120,15.4218,147.69,147.68,6.19]
[1718363662020,6.2744,147.7,147.68,6.19]
[1718363662358,15.8539,147.72,147.68,6.19]
[1718363662844,15.8539,147.72,147.69,6.19]
[1718363666752,15.8539,147.72,147.63,24.76]
[1718363666958,15.8539,147.72,147.68,6.19]